[Event "ETCC Women 2013"]
[Site "Warsaw"]
[Date "2013.11.10"]
[Round "3"]
[White "Gunina, Valentina"]
[Black "Moser, Eva"]
[Result "1-0"]
[ECO "A43"]
[WhiteElo "2509"]
[BlackElo "2434"]
[PlyCount "75"]
[EventDate "2013.??.??"]
[EventCountry "POL"]
[WhiteTeam "Russia"]
[BlackTeam "Austria"]
[WhiteTeamCountry "RUS"]
[BlackTeamCountry "AUT"]
[TimeControl "40/5400+30:1800+30"]

1. d4 {[%emt 0:00:00]} c5 {[%emt 0:00:00]} 2. d5 {[%emt 0:00:00]} d6 {[%emt 0:
00:00]} 3. e4 {[%emt 0:00:00]} g6 {[%emt 0:00:00]} 4. Nc3 {[%emt 0:00:00]} Bg7
{[%emt 0:00:00]} 5. Nf3 {[%emt 0:00:14]} Nf6 {[%emt 0:00:00]} 6. Bb5+ {[%emt 0:
00:26]} Nbd7 {[%emt 0:00:07]} 7. a4 {[%emt 0:00:33]} a6 {[%emt 0:00:26]} 8. Bc4
{[%emt 0:01:16]} b6 {[%emt 0:01:14]} 9. O-O {[%emt 0:00:56]} O-O {[%emt 0:00:
49]} 10. h3 {[%emt 0:00:49]} Ne8 {[%emt 0:09:48]} 11. Rb1 {[%emt 0:23:28]} Ne5
{[%emt 0:07:02]} 12. Nxe5 {[%emt 0:01:37]} dxe5 {[%emt 0:00:35]} 13. Be3 {
[%emt 0:01:42]} Nd6 {[%emt 0:01:53]} 14. Be2 {[%emt 0:00:37]} Qc7 {[%emt 0:04:
02]} 15. Qd2 {[%emt 0:09:16]} Bd7 {[%emt 0:04:46]} 16. f4 {[%emt 0:08:23]} b5 {
[%emt 0:07:37]} 17. fxe5 {[%emt 0:04:15]} Bxe5 {[%emt 0:00:47]} 18. Bf4 {[%emt
0:00:19]} Bxf4 {[%emt 0:15:25]} 19. Qxf4 {[%emt 0:00:34]} b4 {[%emt 0:01:35]}
20. Nd1 {[%emt 0:00:40]} Bxa4 {[%emt 0:01:19]} 21. Ne3 {[%emt 0:00:59]} Bd7 {
[%emt 0:22:10]} 22. e5 {[%emt 0:02:41]} Nf5 {[%emt 0:00:22]} 23. d6 {[%emt 0:
00:47]} exd6 {[%emt 0:01:38]} 24. Nd5 {[%emt 0:01:17]} Qd8 {[%emt 0:05:26]} 25.
g4 {[%emt 0:07:23]} dxe5 {[%emt 0:03:39]} 26. Qxe5 {[%emt 0:00:36]} f6 {[%emt
0:00:41]} 27. Qf4 {[%emt 0:02:06]} Nd4 {[%emt 0:02:15]} 28. Bd3 {[%emt 0:04:14]
} Kg7 {[%emt 0:06:55]} 29. Rbe1 {[%emt 0:00:42]} Rf7 {[%emt 0:01:44]} 30. Re7 {
[%emt 0:00:28]} Bf5 {[%emt 0:01:10]} 31. Rxf7+ {[%emt 0:00:53]} Kxf7 {[%emt 0:
00:01]} 32. gxf5 {[%emt 0:00:23]} Qxd5 {[%emt 0:00:06]} 33. fxg6+ {[%emt 0:00:
05]} Ke8 {[%emt 0:02:16]} 34. Qxf6 {[%emt 0:00:47]} hxg6 {[%emt 0:00:35]} 35.
Re1+ {[%emt 0:00:17]} Kd7 {[%emt 0:00:14]} 36. Re7+ {[%emt 0:00:05]} Kc8 {
[%emt 0:00:16]} 37. Qf8+ {[%emt 0:00:09]} Qd8 {[%emt 0:00:06]} 38. Re8 {[%emt
0:00:07]} 1-0

[Event "ETCC Women 2013"]
[Site "Warsaw"]
[Date "2013.11.10"]
[Round "3"]
[White "Gurcan, Aytolun"]
[Black "Michna, Marta"]
[Result "0-1"]
[ECO "B01"]
[WhiteElo "1745"]
[BlackElo "2357"]
[PlyCount "52"]
[EventDate "2013.??.??"]
[EventCountry "POL"]
[WhiteTeam "Turkey"]
[BlackTeam "Germany"]
[WhiteTeamCountry "TUR"]
[BlackTeamCountry "GER"]
[TimeControl "40/5400+30:1800+30"]

1. e4 {[%emt 0:00:00]} d5 {[%emt 0:00:05]} 2. exd5 {[%emt 0:00:00]} Qxd5 {
[%emt 0:00:22]} 3. Nc3 {[%emt 0:00:05]} Qa5 {[%emt 0:00:11]} 4. d4 {[%emt 0:00:
35]} Nf6 {[%emt 0:00:10]} 5. Nf3 {[%emt 0:01:20]} Nc6 {[%emt 0:00:11]} 6. Bd2 {
[%emt 0:06:17]} Bg4 {[%emt 0:01:29]} 7. Bb5 {[%emt 0:01:02]} O-O-O {[%emt 0:01:
40]} 8. Bxc6 {[%emt 0:04:21]} bxc6 {[%emt 0:00:03]} 9. Ne2 {[%emt 0:09:46]} Qd5
{[%emt 0:16:55]} 10. c4 {[%emt 0:20:24]} Qe4 {[%emt 0:11:57]} 11. Ne5 {[%emt 0:
16:25]} Qxg2 {[%emt 0:01:09]} 12. Rf1 {[%emt 0:02:10]} Bxe2 {[%emt 0:23:45]}
13. Qxe2 {[%emt 0:06:14]} Rxd4 {[%emt 0:03:38]} 14. Be3 {[%emt 0:01:32]} Re4 {
[%emt 0:04:41]} 15. Nxc6 {[%emt 0:02:50]} Ng4 {[%emt 0:13:00]} 16. Qd3 {[%emt
0:10:59]} Rxe3+ {[%emt 0:02:01]} 17. fxe3 {[%emt 0:00:31]} Qxc6 {[%emt 0:00:09]
} 18. Rd1 {[%emt 0:00:28]} e6 {[%emt 0:03:56]} 19. Qd8+ {[%emt 0:03:14]} Kb7 {
[%emt 0:00:07]} 20. Rd2 {[%emt 0:01:02]} Bb4 {[%emt 0:01:22]} 21. Qxh8 {[%emt
0:00:27]} Qd6 {[%emt 0:00:29]} 22. Rff2 {[%emt 0:02:52]} Nxf2 {[%emt 0:00:07]}
23. Kxf2 {[%emt 0:00:07]} Qxd2+ {[%emt 0:00:04]} 24. Kf3 {[%emt 0:00:11]} Qd1+
{[%emt 0:00:30]} 25. Ke4 {[%emt 0:01:06]} f5+ {[%emt 0:00:11]} 26. Ke5 {[%emt
0:00:54]} Qd6# {[%emt 0:00:06]} 0-1

[Event "ETCC Women 2013"]
[Site "Warsaw"]
[Date "2013.11.10"]
[Round "3"]
[White "Hernandez Estevez, Yudania"]
[Black "Mamedjarova, Turkan"]
[Result "1/2-1/2"]
[ECO "C77"]
[WhiteElo "2284"]
[BlackElo "2250"]
[PlyCount "81"]
[EventDate "2013.??.??"]
[EventCountry "POL"]
[WhiteTeam "Spain"]
[BlackTeam "Azerbaijan"]
[WhiteTeamCountry "ESP"]
[BlackTeamCountry "AZE"]
[TimeControl "40/5400+30:1800+30"]

1. e4 {[%emt 0:00:00]} e5 {[%emt 0:00:00]} 2. Nf3 {[%emt 0:00:00]} Nc6 {[%emt
0:00:08]} 3. Bb5 {[%emt 0:00:35]} a6 {[%emt 0:00:19]} 4. Ba4 {[%emt 0:00:08]}
Nf6 {[%emt 0:00:06]} 5. d3 {[%emt 0:00:06]} b5 {[%emt 0:00:24]} 6. Bb3 {[%emt
0:00:08]} Bc5 {[%emt 0:00:08]} 7. O-O {[%emt 0:06:12]} O-O {[%emt 0:00:50]} 8.
a4 {[%emt 0:02:47]} Rb8 {[%emt 0:07:19]} 9. Be3 {[%emt 0:11:27]} d6 {[%emt 0:
08:58]} 10. axb5 {[%emt 0:04:05]} axb5 {[%emt 0:00:33]} 11. Nc3 {[%emt 0:00:13]
} Bg4 {[%emt 0:06:04]} 12. h3 {[%emt 0:03:14]} Bxf3 {[%emt 0:04:19]} 13. Qxf3 {
[%emt 0:00:51]} Nd4 {[%emt 0:00:17]} 14. Bxd4 {[%emt 0:01:12]} Bxd4 {[%emt 0:
00:15]} 15. Ra2 {[%emt 0:02:13]} Bxc3 {[%emt 0:24:48]} 16. bxc3 {[%emt 0:00:09]
} Ra8 {[%emt 0:00:27]} 17. Rfa1 {[%emt 0:04:19]} Rxa2 {[%emt 0:00:06]} 18. Rxa2
{[%emt 0:00:29]} Qd7 {[%emt 0:02:22]} 19. Ra5 {[%emt 0:13:15]} h6 {[%emt 0:11:
15]} 20. Qf5 {[%emt 0:07:10]} Qc6 {[%emt 0:06:16]} 21. c4 {[%emt 0:00:22]} bxc4
{[%emt 0:00:12]} 22. Bxc4 {[%emt 0:00:12]} Qb6 {[%emt 0:01:16]} 23. Ra1 {[%emt
0:15:35]} Qd4 {[%emt 0:08:52]} 24. Rb1 {[%emt 0:01:44]} c6 {[%emt 0:03:03]} 25.
Rb7 {[%emt 0:09:12]} d5 {[%emt 0:02:14]} 26. Bb3 {[%emt 0:01:29]} Kh8 {[%emt 0:
06:24]} 27. Re7 {[%emt 0:07:59]} dxe4 {[%emt 0:00:49]} 28. dxe4 {[%emt 0:04:09]
} Qxe4 {[%emt 0:01:06]} 29. Qxe4 {[%emt 0:01:37]} Nxe4 {[%emt 0:00:02]} 30.
Rxe5 {[%emt 0:00:44]} Nd2 {[%emt 0:01:29]} 31. Rc5 {[%emt 0:01:57]} Nxb3 {
[%emt 0:01:02]} 32. cxb3 {[%emt 0:00:06]} Rb8 {[%emt 0:00:03]} 33. Rxc6 {[%emt
0:00:32]} Rxb3 {[%emt 0:00:06]} 34. Rc7 {[%emt 0:00:14]} Kg8 {[%emt 0:00:31]}
35. Rc8+ {[%emt 0:00:07]} Kh7 {[%emt 0:00:03]} 36. Rc6 {[%emt 0:00:21]} Rb2 {
[%emt 0:00:15]} 37. Ra6 {[%emt 0:00:17]} Rc2 {[%emt 0:00:08]} 38. Rb6 {[%emt 0:
00:14]} Rd2 {[%emt 0:00:12]} 39. Ra6 {[%emt 0:00:12]} Rc2 {[%emt 0:00:04]} 40.
Rb6 {[%emt 0:00:00]} Rd2 {[%emt 0:00:00]} 41. Ra6 1/2-1/2

[Event "ETCC Women 2013"]
[Site "Warsaw"]
[Date "2013.11.10"]
[Round "3"]
[White "Hoang, Thanh Trang"]
[Black "Bojkovic, Natasa"]
[Result "1/2-1/2"]
[ECO "E01"]
[WhiteElo "2511"]
[BlackElo "2405"]
[PlyCount "82"]
[EventDate "2013.??.??"]
[EventCountry "POL"]
[WhiteTeam "Hungary"]
[BlackTeam "Serbia"]
[WhiteTeamCountry "HUN"]
[BlackTeamCountry "SRB"]
[TimeControl "40/5400+30:1800+30"]

1. d4 {[%emt 0:00:00]} Nf6 {[%emt 0:00:00]} 2. c4 {[%emt 0:00:09]} e6 {[%emt 0:
00:00]} 3. g3 {[%emt 0:00:23]} d5 {[%emt 0:02:34]} 4. Bg2 {[%emt 0:01:23]} Bb4+
{[%emt 0:00:35]} 5. Bd2 {[%emt 0:00:24]} Be7 {[%emt 0:00:03]} 6. Nf3 {[%emt 0:
00:32]} c6 {[%emt 0:01:16]} 7. Qc2 {[%emt 0:00:49]} O-O {[%emt 0:02:38]} 8. O-O
{[%emt 0:00:25]} b6 {[%emt 0:00:35]} 9. Bf4 {[%emt 0:01:46]} Bb7 {[%emt 0:06:
05]} 10. Rd1 {[%emt 0:00:49]} Nbd7 {[%emt 0:04:20]} 11. Ne5 {[%emt 0:02:18]}
Nxe5 {[%emt 0:05:28]} 12. dxe5 {[%emt 0:01:19]} Nd7 {[%emt 0:00:16]} 13. cxd5 {
[%emt 0:01:06]} cxd5 {[%emt 0:00:10]} 14. e4 {[%emt 0:00:49]} dxe4 {[%emt 0:09:
57]} 15. Nc3 {[%emt 0:04:19]} Qc7 {[%emt 0:05:34]} 16. Rac1 {[%emt 0:09:07]}
Rfd8 {[%emt 0:09:49]} 17. Nd5 {[%emt 0:12:49]} Qxc2 {[%emt 0:01:58]} 18. Nxe7+
{[%emt 0:00:08]} Kf8 {[%emt 0:00:06]} 19. Rxc2 {[%emt 0:00:38]} Kxe7 {[%emt 0:
00:03]} 20. Rc7 {[%emt 0:02:27]} Bd5 {[%emt 0:00:46]} 21. Rdc1 {[%emt 0:05:24]}
Ke8 {[%emt 0:10:21]} 22. Bf1 {[%emt 0:07:05]} a6 {[%emt 0:00:20]} 23. b4 {
[%emt 0:05:29]} h6 {[%emt 0:01:52]} 24. h4 {[%emt 0:02:47]} b5 {[%emt 0:06:18]}
25. a3 {[%emt 0:05:03]} Nb6 {[%emt 0:02:43]} 26. Be3 {[%emt 0:07:25]} Nc4 {
[%emt 0:00:50]} 27. Bxc4 {[%emt 0:02:40]} Bxc4 {[%emt 0:00:18]} 28. Bc5 {[%emt
0:00:21]} Rd7 {[%emt 0:00:59]} 29. Rxd7 {[%emt 0:01:08]} Kxd7 {[%emt 0:00:01]}
30. Rd1+ {[%emt 0:00:23]} Bd5 {[%emt 0:00:59]} 31. Kf1 {[%emt 0:00:39]} h5 {
[%emt 0:21:26]} 32. Ke2 {[%emt 0:00:31]} a5 {[%emt 0:00:22]} 33. bxa5 {[%emt 0:
03:16]} Rxa5 {[%emt 0:00:02]} 34. Rc1 {[%emt 0:01:33]} Ra8 {[%emt 0:03:43]} 35.
Bd6 {[%emt 0:01:00]} Rc8 {[%emt 0:00:33]} 36. Rxc8 {[%emt 0:00:19]} Kxc8 {
[%emt 0:00:04]} 37. Ke3 {[%emt 0:00:13]} Kd7 {[%emt 0:00:32]} 38. Bf8 {[%emt 0:
01:05]} g6 {[%emt 0:00:04]} 39. Kd4 {[%emt 0:00:11]} Kc6 {[%emt 0:00:11]} 40.
Be7 {[%emt 0:00:00]} Kd7 {[%emt 0:00:00]} 41. Bb4 {[%emt 0:00:56]} Kc6 {[%emt
0:01:22] Kxe4} 1/2-1/2

[Event "ETCC Women 2013"]
[Site "Warsaw"]
[Date "2013.11.10"]
[Round "3"]
[White "Iwanow, Anna"]
[Black "Raeva, Elitsa"]
[Result "1-0"]
[ECO "B90"]
[WhiteElo "2206"]
[BlackElo "2361"]
[PlyCount "63"]
[EventDate "2013.??.??"]
[EventCountry "POL"]
[WhiteTeam "Poland"]
[BlackTeam "Bulgaria"]
[WhiteTeamCountry "POL"]
[BlackTeamCountry "BUL"]
[TimeControl "40/5400+30:1800+30"]

1. e4 {[%emt 0:00:00]} c5 {[%emt 0:00:00]} 2. Nf3 {[%emt 0:00:00]} d6 {[%emt 0:
00:00]} 3. d4 {[%emt 0:00:00]} cxd4 {[%emt 0:00:00]} 4. Nxd4 {[%emt 0:00:00]}
Nf6 {[%emt 0:00:09]} 5. Nc3 {[%emt 0:00:01]} a6 {[%emt 0:00:12]} 6. Bc4 {[%emt
0:00:17]} e6 {[%emt 0:01:55]} 7. Bb3 {[%emt 0:00:10]} Be7 {[%emt 0:01:30]} 8.
g4 {[%emt 0:00:29]} O-O {[%emt 0:19:56]} 9. g5 {[%emt 0:00:58]} Ne8 {[%emt 0:
01:26]} 10. Rg1 {[%emt 0:01:32]} Nc6 {[%emt 0:02:11]} 11. Be3 {[%emt 0:08:14]}
Na5 {[%emt 0:05:45]} 12. Qh5 {[%emt 0:09:57]} Nxb3 {[%emt 0:04:35]} 13. axb3 {
[%emt 0:00:12]} g6 {[%emt 0:05:36]} 14. Qh4 {[%emt 0:13:29]} Nc7 {[%emt 0:02:
47]} 15. O-O-O {[%emt 0:01:03]} Nb5 {[%emt 0:02:49]} 16. Nde2 {[%emt 0:09:19]}
Bd7 {[%emt 0:06:10]} 17. Rg3 {[%emt 0:00:55]} Qa5 {[%emt 0:06:06]} 18. Qh6 {
[%emt 0:08:07]} f6 {[%emt 0:03:32]} 19. Nf4 {[%emt 0:11:42]} Nxc3 {[%emt 0:04:
29]} 20. bxc3 {[%emt 0:00:47]} Rf7 {[%emt 0:03:30]} 21. Nxg6 {[%emt 0:03:15]}
hxg6 {[%emt 0:04:35]} 22. Rh3 {[%emt 0:06:06]} Rg7 {[%emt 0:00:12]} 23. Qh8+ {
[%emt 0:02:34]} Kf7 {[%emt 0:00:06]} 24. Qxa8 {[%emt 0:00:13]} Qxc3 {[%emt 0:
08:24]} 25. Qxb7 {[%emt 0:04:04]} Bc6 {[%emt 0:10:43]} 26. Qc7 {[%emt 0:00:31]}
Kg8 {[%emt 0:00:30]} 27. Qc8+ {[%emt 0:07:20]} Kf7 {[%emt 0:00:07]} 28. Kb1 {
[%emt 0:01:34]} f5 {[%emt 0:04:23]} 29. Rh8 {[%emt 0:04:08]} a5 {[%emt 0:02:10]
} 30. Bd4 {[%emt 0:01:23]} Qf3 {[%emt 0:00:06]} 31. Bxg7 {[%emt 0:02:27]} Qxd1+
{[%emt 0:00:27]} 32. Kb2 {[%emt 0:00:14]} 1-0

[Event "ETCC Women 2013"]
[Site "Warsaw"]
[Date "2013.11.10"]
[Round "3"]
[White "Khotenashvili, Bela"]
[Black "Borsuk, Angela"]
[Result "1-0"]
[ECO "A41"]
[WhiteElo "2524"]
[BlackElo "2186"]
[PlyCount "117"]
[EventDate "2013.??.??"]
[EventCountry "POL"]
[WhiteTeam "Georgia"]
[BlackTeam "Israel"]
[WhiteTeamCountry "GEO"]
[BlackTeamCountry "ISR"]
[TimeControl "40/5400+30:1800+30"]

1. d4 {[%emt 0:00:00]} d6 {[%emt 0:00:00]} 2. Nf3 {[%emt 0:00:00]} Nf6 {[%emt
0:00:00]} 3. c4 {[%emt 0:00:00]} g6 {[%emt 0:00:50]} 4. Nc3 {[%emt 0:00:16]}
Bg7 {[%emt 0:00:18]} 5. e4 {[%emt 0:00:43]} O-O {[%emt 0:01:07]} 6. h3 {[%emt
0:00:15]} e5 {[%emt 0:07:30]} 7. d5 {[%emt 0:00:19]} Nbd7 {[%emt 0:07:00]} 8.
Bg5 {[%emt 0:01:38]} h6 {[%emt 0:02:23]} 9. Be3 {[%emt 0:00:23]} Nc5 {[%emt 0:
02:57]} 10. Qc2 {[%emt 0:11:26]} a5 {[%emt 0:18:25]} 11. g4 {[%emt 0:03:23]} h5
{[%emt 0:12:24]} 12. g5 {[%emt 0:07:59]} Ne8 {[%emt 0:05:30]} 13. Be2 {[%emt 0:
02:30]} Bd7 {[%emt 0:00:30]} 14. O-O-O {[%emt 0:02:16]} Qc8 {[%emt 0:03:02]}
15. Nh4 {[%emt 0:06:52]} a4 {[%emt 0:09:29]} 16. Rdg1 {[%emt 0:27:55]} a3 {
[%emt 0:04:20]} 17. b3 {[%emt 0:06:16]} Na6 {[%emt 0:05:03]} 18. Qd1 {[%emt 0:
07:22]} Nb4 {[%emt 0:01:43]} 19. Kb1 {[%emt 0:01:52]} c6 {[%emt 0:01:32]} 20.
Na4 {[%emt 0:03:04]} Rxa4 {[%emt 0:07:57]} 21. bxa4 {[%emt 0:00:04]} cxd5 {
[%emt 0:00:07]} 22. cxd5 {[%emt 0:01:06]} Nc7 {[%emt 0:02:59]} 23. Qb3 {[%emt
0:01:15]} Ncxd5 {[%emt 0:04:33]} 24. Rc1 {[%emt 0:02:34]} Bxa4 {[%emt 0:00:29]}
25. Qxa4 {[%emt 0:03:20]} Nc3+ {[%emt 0:00:05]} 26. Rxc3 {[%emt 0:00:03]} Qxc3
{[%emt 0:00:04]} 27. Qb3 {[%emt 0:00:07]} Qxb3+ {[%emt 0:01:48]} 28. axb3 {
[%emt 0:00:01]} Ra8 {[%emt 0:00:22]} 29. Rc1 {[%emt 0:02:27]} a2+ {[%emt 0:00:
39]} 30. Ka1 {[%emt 0:00:01]} d5 {[%emt 0:00:26]} 31. Bd2 {[%emt 0:01:20]} Nc6
{[%emt 0:00:05]} 32. Ng2 {[%emt 0:03:42]} dxe4 {[%emt 0:00:42]} 33. Ne3 {[%emt
0:00:23]} Nd4 {[%emt 0:00:10]} 34. Bd1 {[%emt 0:01:46]} Bf8 {[%emt 0:00:05]}
35. b4 {[%emt 0:00:34]} Nc6 {[%emt 0:01:11]} 36. Nd5 {[%emt 0:01:43]} Rd8 {
[%emt 0:00:22]} 37. Bb3 {[%emt 0:00:53]} Kg7 {[%emt 0:01:17]} 38. Bxa2 {[%emt
0:01:07]} Ne7 {[%emt 0:00:21]} 39. Rc5 {[%emt 0:00:21]} Nf5 {[%emt 0:00:25]}
40. Rb5 {[%emt 0:00:00]} Rd7 {[%emt 0:00:00]} 41. Bc3 {[%emt 0:03:37]} Nd4 {
[%emt 0:02:15]} 42. Rb6 {[%emt 0:05:50]} Be7 {[%emt 0:05:57]} 43. Nxe7 {[%emt
0:00:56]} Rxe7 {[%emt 0:00:05]} 44. Bd5 {[%emt 0:00:50]} e3 {[%emt 0:01:52]}
45. fxe3 {[%emt 0:01:01]} Nc2+ {[%emt 0:00:04]} 46. Ka2 {[%emt 0:00:12]} Nxe3 {
[%emt 0:00:06]} 47. Be4 {[%emt 0:00:18]} Nd1 {[%emt 0:01:50]} 48. Ba1 {[%emt 0:
00:30]} Nf2 {[%emt 0:00:27]} 49. Rxb7 {[%emt 0:00:19]} Kf8 {[%emt 0:02:10]} 50.
Rb8+ {[%emt 0:02:15]} Kg7 {[%emt 0:01:31]} 51. Bg2 {[%emt 0:00:04]} Nd3 {[%emt
0:02:30]} 52. b5 {[%emt 0:00:12]} f6 {[%emt 0:03:28]} 53. b6 {[%emt 0:00:13]}
Nc5 {[%emt 0:01:16]} 54. Rc8 {[%emt 0:01:08]} Na6 {[%emt 0:01:14]} 55. gxf6+ {
[%emt 0:01:03]} Kxf6 {[%emt 0:00:04]} 56. b7 {[%emt 0:00:03]} Kg5 {[%emt 0:00:
57]} 57. Ra8 {[%emt 0:00:48]} Re6 {[%emt 0:00:36]} 58. Bc3 {[%emt 0:00:21]} Rb6
{[%emt 0:04:47]} 59. Ba5 {[%emt 0:00:16]} 1-0

[Event "ETCC Women 2013"]
[Site "Warsaw"]
[Date "2013.11.10"]
[Round "3"]
[White "Kiolbasa, Oliwia"]
[Black "Ivanova, Simoneta"]
[Result "1/2-1/2"]
[ECO "C41"]
[WhiteElo "1982"]
[BlackElo "2046"]
[PlyCount "110"]
[EventDate "2013.??.??"]
[EventCountry "POL"]
[WhiteTeam "Poland"]
[BlackTeam "Bulgaria"]
[WhiteTeamCountry "POL"]
[BlackTeamCountry "BUL"]
[TimeControl "40/5400+30:1800+30"]

1. e4 {[%emt 0:00:00]} d6 {[%emt 0:00:00]} 2. d4 {[%emt 0:00:00]} Nf6 {[%emt 0:
00:00]} 3. Nc3 {[%emt 0:00:00]} e5 {[%emt 0:00:00]} 4. Nf3 {[%emt 0:00:00]}
Nbd7 {[%emt 0:00:04]} 5. Bc4 {[%emt 0:00:13]} Be7 {[%emt 0:00:10]} 6. O-O {
[%emt 0:00:12]} Nb6 {[%emt 0:00:15]} 7. Be2 {[%emt 0:17:44]} exd4 {[%emt 0:00:
21]} 8. Nxd4 {[%emt 0:00:14]} O-O {[%emt 0:00:26]} 9. Re1 {[%emt 0:16:58]} Re8
{[%emt 0:03:38]} 10. h3 {[%emt 0:05:18]} Bf8 {[%emt 0:08:01]} 11. Bd3 {[%emt 0:
02:45]} c5 {[%emt 0:05:54]} 12. Nf3 {[%emt 0:01:38]} Nbd7 {[%emt 0:07:52]} 13.
Bg5 {[%emt 0:11:24]} h6 {[%emt 0:02:07]} 14. Bxf6 {[%emt 0:06:35]} Nxf6 {[%emt
0:06:13]} 15. Bb5 {[%emt 0:01:22]} Bd7 {[%emt 0:03:21]} 16. Bxd7 {[%emt 0:00:
28]} Qxd7 {[%emt 0:06:14]} 17. Qd3 {[%emt 0:01:28]} Rad8 {[%emt 0:03:54]} 18.
Rad1 {[%emt 0:03:50]} Qc6 {[%emt 0:10:48]} 19. Nd5 {[%emt 0:11:39]} Nd7 {[%emt
0:05:08]} 20. Nh4 {[%emt 0:03:10]} g6 {[%emt 0:05:24]} 21. Qg3 {[%emt 0:06:08]}
Bg7 {[%emt 0:02:10]} 22. f4 {[%emt 0:04:52]} Nb6 {[%emt 0:05:03]} 23. Nxb6 {
[%emt 0:03:22]} axb6 {[%emt 0:07:34]} 24. Qf3 {[%emt 0:01:59]} Bf6 {[%emt 0:02:
23]} 25. Qg4 {[%emt 0:00:28]} Kh7 {[%emt 0:05:53]} 26. f5 {[%emt 0:00:29]} g5 {
[%emt 0:02:18]} 27. Nf3 {[%emt 0:00:28]} Rd7 {[%emt 0:04:54]} 28. Rd5 {[%emt 0:
00:42]} Rde7 {[%emt 0:01:55]} 29. c4 {[%emt 0:00:18]} Bxb2 {[%emt 0:00:35]} 30.
f6 {[%emt 0:00:37]} Bxf6 {[%emt 0:00:43]} 31. h4 {[%emt 0:00:19]} gxh4 {[%emt
0:00:48]} 32. Nxh4 {[%emt 0:00:17]} Bxh4 {[%emt 0:00:21]} 33. Qxh4 {[%emt 0:00:
15]} Re6 {[%emt 0:00:24]} 34. Rf1 {[%emt 0:00:24]} Qc7 {[%emt 0:00:40]} 35.
Rdf5 {[%emt 0:00:42]} Qd8 {[%emt 0:01:03]} 36. Rxf7+ {[%emt 0:00:57]} Kg8 {
[%emt 0:00:21]} 37. Qf4 {[%emt 0:00:23]} Rg6 {[%emt 0:00:52]} 38. Qf5 {[%emt 0:
00:16]} Qg5 {[%emt 0:00:19]} 39. Qxg5 {[%emt 0:01:00]} hxg5 {[%emt 0:00:37]}
40. Rxb7 {[%emt 0:00:00]} Rxe4 {[%emt 0:00:00]} 41. Rxb6 {[%emt 0:11:41]} Rxc4
{[%emt 0:01:19]} 42. Rd1 {[%emt 0:00:25]} Ra4 {[%emt 0:05:14]} 43. Rbxd6 {
[%emt 0:01:00]} Rxd6 {[%emt 0:00:29]} 44. Rxd6 {[%emt 0:00:04]} Rxa2 {[%emt 0:
00:48]} 45. Rd5 {[%emt 0:00:26]} c4 {[%emt 0:00:35]} 46. Rxg5+ {[%emt 0:00:04]}
Kf7 {[%emt 0:00:05]} 47. Rc5 {[%emt 0:00:06]} Rc2 {[%emt 0:00:34]} 48. g4 {
[%emt 0:01:00]} c3 {[%emt 0:02:58]} 49. g5 {[%emt 0:00:25]} Kg6 {[%emt 0:02:26]
} 50. Kf1 {[%emt 0:00:12]} Kh5 {[%emt 0:03:50]} 51. Ke1 {[%emt 0:00:09]} Rc1+ {
[%emt 0:02:16]} 52. Ke2 {[%emt 0:00:07]} c2 {[%emt 0:02:08]} 53. Kd2 {[%emt 0:
00:07]} Rg1 {[%emt 0:00:14]} 54. Kxc2 {[%emt 0:00:04]} Rxg5 {[%emt 0:00:04]}
55. Rxg5+ {[%emt 0:00:05]} Kxg5 {[%emt 0:00:03]} 1/2-1/2

[Event "ETCC Women 2013"]
[Site "Warsaw"]
[Date "2013.11.10"]
[Round "3"]
[White "L'Ami, Alina"]
[Black "Zawadzka, Jolanta"]
[Result "1-0"]
[ECO "D38"]
[WhiteElo "2361"]
[BlackElo "2383"]
[PlyCount "53"]
[EventDate "2013.??.??"]
[EventCountry "POL"]
[WhiteTeam "Romania"]
[BlackTeam "Poland"]
[WhiteTeamCountry "ROU"]
[BlackTeamCountry "POL"]
[TimeControl "40/5400+30:1800+30"]

1. d4 {[%emt 0:00:00]} d5 {[%emt 0:00:00]} 2. c4 {[%emt 0:00:00]} e6 {[%emt 0:
00:00]} 3. Nf3 {[%emt 0:00:00]} Nf6 {[%emt 0:00:00]} 4. Nc3 {[%emt 0:00:00]}
Bb4 {[%emt 0:00:09]} 5. cxd5 {[%emt 0:00:25]} exd5 {[%emt 0:00:13]} 6. Bg5 {
[%emt 0:00:05]} h6 {[%emt 0:00:16]} 7. Bh4 {[%emt 0:00:17]} c5 {[%emt 0:00:59]}
8. e3 {[%emt 0:00:41]} c4 {[%emt 0:00:11]} 9. Be2 {[%emt 0:00:10]} g5 {[%emt 0:
00:12]} 10. Bg3 {[%emt 0:00:06]} Ne4 {[%emt 0:00:07]} 11. Rc1 {[%emt 0:02:59]}
Qa5 {[%emt 0:00:13]} 12. Ne5 {[%emt 0:00:41]} Nc6 {[%emt 0:23:49]} 13. O-O {
[%emt 0:07:20]} Bxc3 {[%emt 0:00:53]} 14. bxc3 {[%emt 0:04:09]} O-O {[%emt 0:
12:35]} 15. Bh5 {[%emt 0:25:05]} Nxe5 {[%emt 0:10:29]} 16. Bxe5 {[%emt 0:18:15]
} f6 {[%emt 0:13:38]} 17. f3 {[%emt 0:04:16]} Nxc3 {[%emt 0:00:30]} 18. Qc2 {
[%emt 0:02:23]} Kh8 {[%emt 0:20:02]} 19. Bd6 {[%emt 0:05:46]} Rg8 {[%emt 0:07:
31]} 20. Qxc3 {[%emt 0:03:03]} Qxa2 {[%emt 0:00:06]} 21. Bf7 {[%emt 0:02:18]}
Qa6 {[%emt 0:03:58]} 22. Bc5 {[%emt 0:06:19]} Rd8 {[%emt 0:00:43]} 23. e4 {
[%emt 0:01:47]} Be6 {[%emt 0:02:25]} 24. Bxe6 {[%emt 0:01:32]} Qxe6 {[%emt 0:
00:05]} 25. exd5 {[%emt 0:00:04]} Qe8 {[%emt 0:01:53]} 26. Rfe1 {[%emt 0:00:45]
} Qd7 {[%emt 0:01:11]} 27. Be7 {[%emt 0:00:53]} 1-0